Cogmind - Beta 13 *** ADVENTURER MODE // 2024.04.09 @ 22:51:32 Player: LOOTFASTEATASS Result: Destroyed by G-47 Trooper with Particle Gun Performance ------------- Evolutions (2) 1000 Regions Visited (4) 800 Robots Destroyed (67) 335 Value Destroyed (1656) 1656 Prototype IDs (3) 60 Alien Tech Used (0) 0 Bonus (0) 0 TOTAL SCORE: 3851 Bonus ------- None Cogmind --------- Core Integrity 0/550 Matter 341/500 Energy 100/100 System Corruption 0% Temperature Cool (9) Movement Core (750) Ox14 Location -8/Materials Parts ------- > --- POWER (3) -------- (None) > --- PROPULSION (3) --- (None) > --- UTILITY (2) ------ High-capacity Storage Unit High-capacity Matter Pod > --- WEAPON (3) ------- (None) > --- INVENTORY (20) --- Light Ion Engine Large Matter Pod (94) Hardened Medium Armor Plating Hardlight Generator Improved Datajack Peak State ------------ > --- POWER ------------ Deuterium Engine Light Deuterium Engine Light Nuclear Core > --- PROPULSION ------- Light Treads Advanced Treads Advanced Treads > --- UTILITY ---------- High-capacity Matter Pod Targeting Computer > --- WEAPON ----------- Beam Rifle Particle Gun Heavy Assault Rifle > --- INVENTORY -------- Light Ion Engine Large Matter Pod Actuator Array Hardlight Generator Improved Datajack [Rating: 25] Favorites ----------- Power Improved Ion Engine Engine Improved Ion Engine Power Core Light Nuclear Core Propulsion Light Treads Treads Light Treads Wheel Wheel Utility High-capacity Matter Pod Storage High-capacity Matter Pod Processor Targeting Computer Weapon Heavy Assault Rifle Energy Gun Particle Gun Energy Cannon Particle Cannon Ballistic Gun Heavy Assault Rifle Launcher Grenade Launcher Special Weapon Welding Torch Build | -11 -10 -9 -9 -8 ------- Run | Yrd Mat Mat Sto Mat Slots Evolved 4 | . . 2 . 2 Power 2 | . . 1 . 1 Propulsion 1 | . . 1 . . Utility . | . . . . . Weapon 1 | . . . . 1 Parts Attached 61 | 6 8 9 17 21 Power 13 | 2 . 2 4 5 Engine 12 | 2 . 2 4 4 Core 1 | . . . . 1 Reactor . | . . . . . Propulsion 21 | 2 . 3 8 8 Treads 17 | . . 3 7 7 Leg . | . . . . . Wheel 4 | 2 . . 1 1 Hover . | . . . . . Flight . | . . . . . Utility 4 | . 3 . . 1 Device . | . . . . . Storage 3 | . 2 . . 1 Processor 1 | . 1 . . . Hackware . | . . . . . Protection . | . . . . . Artifact . | . . . . . Weapon 23 | 2 5 4 5 7 Energy Gun 6 | 1 . 1 1 3 Energy Cannon 1 | . . . . 1 Ballistic Gun 9 | 1 1 2 3 2 Ballistic Cannon . | . . . . . Launcher 6 | . 4 1 . 1 Special Weapon 1 | . . . 1 . Impact Weapon . | . . . . . Slashing Weapon . | . . . . . Piercing Weapon . | . . . . . Special Melee Weapon . | . . . . . Unidentified Prototypes 1 | . . 1 . . Parts Lost 25 | . . 2 6 17 Power 7 | . . . 2 5 Propulsion 9 | . . 1 2 6 Utility . | . . . . . Weapon 9 | . . 1 2 6 Highest Loss Streak 9 | . . 1 3 9 To Critical Strikes . | . . . . . Average Slot Usage (%) 92 | . 98 85 95 89 Engine 18 | . 14 18 21 16 Core 2 | . . . . 5 Treads 22 | . . 15 30 24 Wheel 5 | . 28 8 1 . Storage 11 | . 17 11 11 11 Processor 9 | . 9 11 11 6 Energy Gun 6 | . 1 10 2 11 Energy Cannon 1 | . . . . 3 Ballistic Gun 10 | . 10 1 16 7 Launcher 3 | . 15 9 . . Naked Turns . | . . . . . Heaviest Build 73 | 6 14 22 24 73 Greatest Support 64 | 20 20 60 60 64 Greatest Overweight (x) 24 | . . 1 2 24 Average Overweight (x) . | . . . . . Largest Inventory Capacity 20 | 5 5 5 5 20 Average Capacity 6 | 5 5 5 5 8 Most Carried 5 | 5 5 5 5 5 Average Carried 4 | 2 3 4 4 4 Final Capacity 20 | 5 5 5 5 20 Final Carried 5 | 3 4 5 5 5 Class Distribution -------------------- 39% | Scavenger-Mutant 35% | Mutant 13% | Scavenger-Gunner 11% | Gunner Dominant Class ---------------- Mutant | -10/Materials Mutant | -9/Materials Scavenger-Mutant | -9/Storage Scavenger-Gunner | -8/Materials Resources | -11 -10 -9 -9 -8 ----------- Run | Yrd Mat Mat Sto Mat Matter Collected 1853 | 275 81 207 846 444 Remotely . | . . . . . Salvage Created 2092 | 120 135 235 820 782 Parts 149 | 3 18 12 68 48 Haulers Intercepted 2 | . . 1 . 1 Recyclers Shooed 2 | . 1 1 . . Parts Field Recycled . | . . . . . Retrieved Matter . | . . . . . Parts Self-Destructed . | . . . . . Prevented . | . . . . . Kills | -11 -10 -9 -9 -8 ------- Run | Yrd Mat Mat Sto Mat Combat Hostiles Destroyed 45 | 1 3 6 22 13 Guns 36 | 1 1 5 22 7 Cannons 1 | . . . . 1 AOE 6 | . 2 1 . 3 Classes Destroyed 10 | 3 3 2 2 . Worker 3 | 1 . . . 2 Builder 7 | . 6 . 1 . Tunneler 3 | 3 . . . . Hauler 2 | . . 1 . 1 Recycler 3 | . 1 . . 2 Operator 1 | . . . 1 . Watcher 3 | . . . 1 2 Swarmer 13 | . 3 . 7 3 Grunt 18 | 1 . 3 7 7 Sentry 14 | . . 3 8 3 Best Kill Streak 9 | 4 7 3 9 7 Combat Bots Only 7 | 1 3 2 7 4 Max Kills in Single Turn 7 | 1 7 2 2 4 Gunslinging . | . . . . . Exploded 2 | . 2 1 . 2 Melee . | . . . . . Uniques/NPCs Destroyed . | . . . . . Combat | -11 -10 -9 -9 -8 -------- Run | Yrd Mat Mat Sto Mat Hostile Shots Fired 437 | 13 7 40 148 229 Missed 94 | 2 2 14 32 44 Damage Taken 3781 | 92 134 263 1109 2183 Core 744 | 25 25 53 87 554 Absorbed by Shields . | . . . . . Ignored by Resistances 1100 | 28 40 77 320 635 Core Remaining (%) 78 | 90 80 . 65 . Volleys Fired 156 | 15 3 18 74 46 Largest 3 | 2 2 2 2 3 Hottest 156 | 70 50 95 88 156 Shots Fired 278 | 30 6 23 118 101 Gun 249 | 30 3 18 118 80 Cannon 17 | . . . . 17 Launcher 12 | . 3 5 . 4 Special . | . . . . . Kinetic 158 | 15 3 . 109 31 Thermal 108 | 15 . 18 9 66 Explosive 12 | . 3 5 . 4 Electromagnetic . | . . . . . Robot Hit Streak 26 | 7 2 18 26 22 Robot Miss Streak 3 | 1 2 3 2 3 Penetration Max . | . . . . . Secondary Targets 3 | . . . 2 1 Max Gunslinging Chain 1 | . . . 1 1 Shots Hit Robots 197 | 23 1 13 101 59 Core Hits 114 | 7 8 24 41 34 Critical Kills 2 | . . . 2 . Critical Parts Destroyed . | . . . . . Critical Strikes 9 | 3 . . 2 4 Burn 7 | 3 . . . 4 Destroy 2 | . . . 2 . Melee Attacks . | . . . . . Impact . | . . . . . Slashing . | . . . . . Piercing . | . . . . . Sneak Attacks . | . . . . . Combat Hostiles . | . . . . . Follow-up Attacks . | . . . . . Damage Inflicted 4197 | 220 811 407 1440 1319 Guns 2710 | 220 9 237 1440 804 Cannons 144 | . . . . 144 Explosions 1338 | . 802 166 . 370 Melee . | . . . . . Ramming 5 | . . 4 . 1 Kinetic 1729 | 82 9 . 1297 341 Thermal 1125 | 138 . 237 143 607 Explosive 1338 | . 802 166 . 370 Electromagnetic . | . . . . . Impact . | . . . . . Slashing . | . . . . . Piercing . | . . . . . Highest Corruption . | . . . . . Average Corruption . | . . . . . Corruption Purged . | . . . . . Corruption Blocked . | . . . . . Overload Shots . | . . . . . Overflow Damage 236 | . 236 . . . Projectiles . | . . . . . Explosions 236 | . 236 . . . Melee . | . . . . . Knockbacks . | . . . . . Impact . | . . . . . Kinetic . | . . . . . Secondary . | . . . . . Self-Inflicted Damage 153 | . 83 . . 70 Shots 7 | . 3 . . 4 Rammed 3 | . . 1 . 2 Targets Rammed 3 | . . 1 . 2 Kicked . | . . . . . Crushed . | . . . . . Highest Temperature 773 | 156 10 177 159 773 Average Temperature 146 | 68 7 67 43 219 Received Heat Transfer 2064 | 66 . 117 414 1467 Effects 35 | . . . . 35 Shutdowns 17 | . . . . 17 Energy Bleed 4 | . . . . 4 Interference 3 | . . . . 3 Matter Decay 5 | . . . . 5 Short Circuit 4 | . . . . 4 Damage (minor) 2 | . . . . 2 Siege Activations . | . . . . . Robots Corrupted . | . . . . . Combat Hostiles . | . . . . . Parts Fried . | . . . . . Impact Corruptions . | . . . . . Robots Melted 2 | . . . . 2 Combat Hostiles 2 | . . . . 2 Parts Melted 6 | 1 . . . 5 Heat Transferred 2808 | 629 . 285 192 1702 Parts Sabotaged . | . . . . . Parts Stolen . | . . . . . Parts Stripped . | . . . . . Power Chain Reactions . | . . . . . Alert | -11 -10 -9 -9 -8 ------- Run | Yrd Mat Mat Sto Mat Peak Influence 396 | 40 233 331 396 266 Initial 91 | . 22 83 46 91 Average 167 | 12 119 212 221 131 Maximum Alert Level 1 | . 1 1 1 1 Low Security (%) 55 | 100 65 46 38 68 Level 1 44 | . 34 53 61 31 Level 2 . | . . . . . Level 3 . | . . . . . Level 4 . | . . . . . Level 5 . | . . . . . High Security . | . . . . . Max Security . | . . . . . Squads Dispatched 7 | . . 1 2 4 Investigation 2 | . . . 2 . Extermination . | . . . . . Reinforcement 4 | . . 1 . 3 Assault . | . . . . . Garrison 1 | . . . . 1 Intercept . | . . . . . Searches Triggered . | . . . . . Construction Impeded . | . . . . . Haulers Reinforced . | . . . . . Active Scanning Responses . | . . . . . Cargo Convoy Interrupts . | . . . . . Stealth | -11 -10 -9 -9 -8 --------- Run | Yrd Mat Mat Sto Mat Distress Signals 2 | . . . 2 . Communications Jammed . | . . . . . Distress Signals . | . . . . . Times Spotted 64 | 1 4 7 28 24 Peak Tracking Total 6 | 1 4 3 6 5 Tactical Retreats 3 | . . 1 1 1 Traps | -11 -10 -9 -9 -8 ------- Run | Yrd Mat Mat Sto Mat Traps Triggered 4 | . 1 . 2 1 Indirectly . | . . . . . Trap Hack Attempts . | . . . . . Triggered . | . . . . . Disarmed . | . . . . . Reprogrammed . | . . . . . Reused . | . . . . . Traps Extracted . | . . . . . Installed . | . . . . . Triggered . | . . . . . Machines | -11 -10 -9 -9 -8 ---------- Run | Yrd Mat Mat Sto Mat Machines Disabled 3 | . 2 1 . . Max in Single Turn 2 | . 2 1 . . Machines Repaired . | . . . . . Machines Dismantled . | . . . . . Machines Sabotaged . | . . . . . Overloaded Fab Kills . | . . . . . Hacking | -11 -10 -9 -9 -8 --------- Run | Yrd Mat Mat Sto Mat Machines Accessed 4 | . 2 . 2 . Terminals 3 | . 2 . 1 . Fabricators . | . . . . . Repair Stations 1 | . . . 1 . Recycling Units . | . . . . . Scanalyzers . | . . . . . Garrison Access . | . . . . . Total Hacks 7 | . 4 . 3 . Successful 5 | . 2 . 3 . Failed 2 | . 2 . . . Catastrophic 1 | . 1 . . . Database Lockouts . | . . . . . Manual 2 | . . . 2 . Terminals 6 | . 4 . 2 . Fabricators . | . . . . . Repair Stations 1 | . . . 1 . Recycling Units . | . . . . . Scanalyzers . | . . . . . Garrison Access . | . . . . . Terminal Hacks 4 | . 2 . 2 . Prototype ID Bank 1 | . 1 . . . Alert Level 1 | . . . 1 . Registered Prototypes 1 | . 1 . . . Zone Layout 1 | . . . 1 . Fabricator Hacks . | . . . . . Repair Station Hacks 1 | . . . 1 . Scan Component 1 | . . . 1 . Recycling Unit Hacks . | . . . . . Scanalyzer . | . . . . . Garrison Access Hacks . | . . . . . Unauthorized Hacks . | . . . . . Terminals . | . . . . . Fabricators . | . . . . . Repair Stations . | . . . . . Recycling Units . | . . . . . Scanalyzers . | . . . . . Garrison Access . | . . . . . Data Cores Recovered . | . . . . . Used . | . . . . . Hacking Detections 2 | . 1 . 1 . Full Trace Events 1 | . . . 1 . Feedback Events . | . . . . . Feedback Blocked . | . . . . . Robot Schematics Acquired . | . . . . . Robots Built . | . . . . . Authchips . | . . . . . Time . | . . . . . Total Robot Build Rating . | . . . . . Part Schematics Acquired . | . . . . . Parts Built . | . . . . . Authchips . | . . . . . Time . | . . . . . Total Part Build Rating . | . . . . . Parts Repaired . | . . . . . Time . | . . . . . Parts Recycled . | . . . . . Recycled Matter . | . . . . . Retrieved Matter . | . . . . . Retrieved Components . | . . . . . Parts Scanalyzed . | . . . . . Part Schematics Acquired . | . . . . . Parts Damaged . | . . . . . Bothacking | -11 -10 -9 -9 -8 ------------ Run | Yrd Mat Mat Sto Mat Used RIF Installer . | . . . . . Robots Hacked . | . . . . . Non-combat . | . . . . . Combat . | . . . . . Robot Hacks Applied . | . . . . . Relay Couplers Released . | . . . . . Fabnet Peak Effective % . | . . . . . Robots Rewired . | . . . . . Allies Hacked . | . . . . . Hacks Repelled . | . . . . . Allies | -11 -10 -9 -9 -8 -------- Run | Yrd Mat Mat Sto Mat Total Allies . | . . . . . Largest Group . | . . . . . Highest-Rated Group . | . . . . . Highest-Rated Ally . | . . . . . Total Orders . | . . . . . Ally Attacks . | . . . . . Total Damage . | . . . . . Kills . | . . . . . Allies Corrupted . | . . . . . Allies Melted . | . . . . . Intel | -11 -10 -9 -9 -8 ------- Run | Yrd Mat Mat Sto Mat Robot Analysis Total . | . . . . . Derelict Logs Recovered . | . . . . . Drone Launches . | . . . . . Drone Recoveries . | . . . . . Exploration | -11 -10 -9 -9 -8 ------------- Run | Yrd Mat Mat Sto Mat Turns Passed 2729 | 126 330 405 939 929 Spaces Moved 1570 | 98 362 256 446 408 Core 37 | 28 . . . 9 Treads 984 | . . 160 441 383 Legs . | . . . . . Wheels 549 | 70 362 96 5 16 Hover . | . . . . . Flight . | . . . . . Fastest Speed 50 | 50 80 80 110 115 Average Speed 136 | 71 80 133 160 176 Slowest Speed 1250 | 80 80 240 240 1250 Overloaded Moves . | . . . . . Propulsion Burnouts . | . . . . . Robots Hopped . | . . . . . Cave-ins Triggered . | . . . . . Exploration Rate (%) 31 | 5 44 17 69 24 Regions Visited 4 Branch Regions 1 Pre-discovered Areas . | . . . . . Known Exits Taken . | . . . . . Unknown Exits Taken 4 | 1 1 1 1 . Scrap Searched . | . . . . . Spaces Dug . | . . . . . Terrain Destroyed 93 | . 52 28 . 13 Melee . | . . . . . Projectile . | . . . . . AOE 93 | . 52 28 . 13 Terrain Rammed . | . . . . . Walls Destroyed . | . . . . . Machines Disabled . | . . . . . Actions | -11 -10 -9 -9 -8 --------- Run | Yrd Mat Mat Sto Mat Total 1881 | 127 400 294 552 508 Wait 11 | . 8 2 1 . Move 1566 | 97 361 255 445 408 Hop . | . . . . . Pick Up 45 | 8 9 4 5 19 Fast Attach 15 | . 2 5 4 4 Attach 18 | 6 2 . 2 8 Detach 2 | 1 1 . . . Swap 28 | . 4 4 11 9 Drop 37 | . 10 5 10 12 Fire 156 | 15 3 18 74 46 Melee . | . . . . . Ram 2 | . . . . 2 Kick . | . . . . . Crush 1 | . . 1 . . Escape Stasis . | . . . . . Rewire . | . . . . . Trap . | . . . . . Miscellaneous . | . . . . . Route ------- -11/Scrapyard -10/Materials (discovered 2 exits: [*Mat] / [*Min]) -9/Materials (discovered 2 exits: *Sto x2) -9/Storage -8/Materials History --------- Turn | Location | Event 2 | -11/Scrapyard | Met Revision 17 61 | -11/Scrapyard | Discovered new exit (range 8) 127 | -11/Scrapyard | Entered Materials 316 | -10/Materials | Build established: Mutant 342 | -10/Materials | Discovered new exit (range 13) 442 | -10/Materials | Discovered new exit (range 16) 457 | -10/Materials | Entered another Materials area 457 | -9/Materials | Evolved 2 slots: Power x1, Propulsion x1 504 | -9/Materials | Discovered new exit (range 15) 776 | -9/Materials | Discovered new exit (range 5) 862 | -9/Materials | Entered Storage 1126 | -9/Storage | Build established: Scavenger-Mutant 1508 | -9/Storage | Destroyed 7 combat bots 1516 | -9/Storage | Lost 3 parts (1p2n) 1703 | -9/Storage | Discovered new exit (range 16) 1801 | -9/Storage | Entered Materials 1801 | -8/Materials | Evolved 2 slots: Power x1, Weapon x1 1980 | -8/Materials | Lost 8 parts (2p3n3w) 2220 | -8/Materials | Build established: Scavenger-Gunner 2577 | -8/Materials | Garrison activated, responded to threat 2600 | -8/Materials | Build established: Gunner 2709 | -8/Materials | Core integrity fell below 50% 2726 | -8/Materials | Core integrity fell below 20% 2730 | -8/Materials | Destroyed by G-47 Trooper with Particle Gun Last Messages --------------- Critical hit (Burn: +37). Broken Hvy. Assault Rifle destroyed. Slammed into G-47 Trooper. Critical hit (Burn: +37). Lgt. Nuclear Core destroyed. Broken Adv. Treads destroyed. Lgt. Deuterium Engine destroyed. Broken Lgt. Treads destroyed. Deuterium Engine destroyed. R-06 Scavenger collects Lgt. Nuclear Core. K-01 Serf destroyed. R-06 Scavenger collects Lgt. Ion Engine. Broken Adv. Treads destroyed. U-05 Engineer builds a Door. Particle Cannon destroyed. Particle Gun destroyed. R-06 Scavenger collects Wheel. Acquired 18 matter. Critical hit (Burn: +37). [Achievement: First Step to Greatness] Map ----- +----------------------------------------------------+ | ##""" #??????????????????????????????????????? | | #""" !###########????????????????????????????? | | + # #????????????????????????????? | | #+###! # #????????????????????????????? | | # # #????????????????????????????? | | ####### #????????????????????????????? | | #?# # #????????????????????????????? | | = #?# # #????????????????????????????? | | #?# # #????????????????????????????? | | #?# + | #????????????????????????????? | | ####### ###########????????????????????????????? | | #??????????????????????????????????????? | | #??????????????????????????????????????? | | ####### #??????????????????????????????????????? | | ??????# #??????????????????????????????????????? | | ??????# #??????????????????????????????????????? | | ??????# #?????##???????????????????????????????? | | ??????# #?????# "T" #?????????????????????????? | | ??????# #?????# #?????????????????????????? | | ####### #?????# """ #?????????????????????????? | | # #?????# """ #?????????????????????????? | | " """ # #?????# """ #?????????????????????????? | | " """ # #??????? ??????????????????????????? | | " """ + ##########+################w###????????? | | ! # uru k % % T??????? | | # g @ % % ??????? | | # t g gg % % ** o ??????? | | #######+######+####### * ???????? | | #######?# # #?? ???????? | | ????????# # "" #?? C *????????? | | ????????# # """ #?? !????????? | | ????????# # """ ]#?? !????????? | | ????????# # #?? ?????????? | | ????????# # #??? ?????????? | | ????????# ########??? #??????????? | | ????????# #?????????? #??????????? | | ????????###########?????????? ???????????? | | ????????????????????????????? """""?????????????? | | ?????????????????????????????? "?????????????????? | | ?????????????????????????????????????????????????? | | ?????????????????????????????????????????????????? | | ?????????????????????????????????????????????????? | | ?????????????????????????????????????????????????? | | ?????????????????????????????????????????????????? | | ?????????????????????????????????????????????????? | | ?????????????????????????????????????????????????? | | ?????????????????????????????????????????????????? | | ?????????????????????????????????????????????????? | | ?????????????????????????????????????????????????? | | ?????????????????????????????????????????????????? | +----------------------------------------------------+ Best States ------------- Heat Dissipation 31 Energy Generation 32 Energy Capacity 430 Matter Stores 500 Matter Capacity 650 Sight Range 16 Terrain Scan Density 10 Resistance: KI 20 Resistance: TH 20 Resistance: EX 20 Resistance: EM 20 Resistance: I 20 Resistance: S 20 Resistance: P 20 Evasion (%) 50 Targeting Accuracy 5 Recoil Reduction 3 Offensive Hacking 10 Item Schematics ----------------- None Robot Schematics ------------------ None Fabricated ------------ Nothing Alien Tech Used ----------------- None Achievements -------------- Crack Shot First Step to Greatness It's Just You Let's See Who's Tougher Loot Pinata One Hack Too Far Risk Taker Troublemaker Uninvited Guest Challenges ------------ None Game ------ Seed TransportFlightTendrils Manual? 0 Play Time 00:57:07 Cumulative 0.9 hours Start 2024.04.05 @ 18:37:54 End 2024.04.09 @ 22:51:32 Sessions 6 Manual Loads 0 Difficulty Adventurer Special Mode None Game No. 1 Rogue 0 Adventurer 1 Explorer 0 Win Type - Total 0 Types 0/0/0/0/0/0/0/0/0 Lore% 0 Gallery% 2 Achievement% 3 Wizard Run 0 Options --------- Layout 1 ASCII 0 Keyboard 0 Movement Mouse Keybinds 0 Fullscreen 1 Font 32/SmallcapsGlow Map View 50x35 Zoom Use 0% Tactical HUD 0 Map Filters NONE Filters NONE Steam 1 RUN: 1d9a672b-19b0-4235-be6c-9578b43c6500